[Event "Titled Tuesday Blitz December 14 2021"]
[White "Pranav, V"]
[Black "Vovk, Orest"]
[WhiteFideId "25060783"]
[BlackFideId "14113490"]
[WhiteElo "2351"]
[BlackElo "2203"]
[Result "1-0"]
[Round "11"]
[TimeControl "180+1"]
[Date "2021.12.14"]
[WhiteClock "0:01:42"]
[BlackClock "0:00:03"]

1. e4 {[%clk 0:03:00]}  g5 {[%clk 0:02:58]} 2. d4 {[%clk 0:03:00]}  h6 {[%clk 0:02:58]} 3. h4 {[%clk 0:03:00]}  g4 {[%clk 0:02:58]} 4. Qxg4 {[%clk 0:03:00]}  d5 {[%clk 0:02:58]} 5. Qe2 {[%clk 0:03:00]}  dxe4 {[%clk 0:02:58]} 6. Qxe4 {[%clk 0:03:01]}  Nf6 {[%clk 0:02:58]} 7. Qd3 {[%clk 0:03:02]}  Nc6 {[%clk 0:02:59]} 8. Nf3 {[%clk 0:03:02]}  Bg4 {[%clk 0:02:58]} 9. Ne5 {[%clk 0:03:01]}  Qxd4 {[%clk 0:02:37]} 10. Nxc6 {[%clk 0:03:01]}  Qxd3 {[%clk 0:02:37]} 11. Bxd3 {[%clk 0:03:02]}  bxc6 {[%clk 0:02:38]} 12. Nc3 {[%clk 0:03:02]}  Nd5 {[%clk 0:02:22]} 13. Bd2 {[%clk 0:02:56]}  Bg7 {[%clk 0:02:17]} 14. Na4 {[%clk 0:02:53]}  O-O-O {[%clk 0:02:07]} 15. f3 {[%clk 0:02:48]}  Bd7 {[%clk 0:01:54]} 16. O-O-O {[%clk 0:02:46]}  Bd4 {[%clk 0:01:34]} 17. c3 {[%clk 0:02:33]}  Be3 {[%clk 0:01:25]} 18. Rhe1 {[%clk 0:02:24]}  Bf2 {[%clk 0:01:13]} 19. Re4 {[%clk 0:02:09]}  f5 {[%clk 0:00:55]} 20. Re2 {[%clk 0:02:04]}  Bxh4 {[%clk 0:00:54]} 21. Nc5 {[%clk 0:02:03]}  f4 {[%clk 0:00:28]} 22. Ba6+ {[%clk 0:01:55]}  Kb8 {[%clk 0:00:26]} 23. c4 {[%clk 0:01:56]}  Nb6 {[%clk 0:00:18]} 24. Bxf4 {[%clk 0:01:56]}  Bc8 {[%clk 0:00:12]} 25. Bxc8 {[%clk 0:01:56]}  Kxc8 {[%clk 0:00:12]} 26. Rxd8+ {[%clk 0:01:53]}  Kxd8 {[%clk 0:00:09]} 27. Re6 {[%clk 0:01:54]}  Bg5 {[%clk 0:00:08]} 28. Bxg5 {[%clk 0:01:45]}  hxg5 {[%clk 0:00:09]} 29. b3 {[%clk 0:01:46]}  Rh1+ {[%clk 0:00:07]} 30. Kc2 {[%clk 0:01:46]}  Rh2 {[%clk 0:00:08]} 31. Re2 {[%clk 0:01:46]}  Kc8 {[%clk 0:00:07]} 32. Ne6 {[%clk 0:01:46]}  Rh5 {[%clk 0:00:05]} 33. Nd4 {[%clk 0:01:45]}  c5 {[%clk 0:00:04]} 34. Nf5 {[%clk 0:01:44]}  Kb7 {[%clk 0:00:04]} 35. Nxe7 {[%clk 0:01:43]}  g4 {[%clk 0:00:03]} 36. fxg4 {[%clk 0:01:42]}  Rg5 {[%clk 0:00:04]} 37. Re4 {[%clk 0:01:43]}  Nc8 {[%clk 0:00:04]} 38. Nf5 {[%clk 0:01:43]}  Nd6 {[%clk 0:00:04]} 39. Nxd6+ {[%clk 0:01:44]}  cxd6 {[%clk 0:00:05]} 40. Kd3 {[%clk 0:01:45]}  Kc6 {[%clk 0:00:05]} 41. Ke3 {[%clk 0:01:45]}  Rg8 {[%clk 0:00:05]} 42. Kf3 {[%clk 0:01:45]}  a5 {[%clk 0:00:05]} 43. Kf4 {[%clk 0:01:43]}  a4 {[%clk 0:00:04]} 44. g5 {[%clk 0:01:42]}  a3 {[%clk 0:00:04]} 45. Kg4 {[%clk 0:01:42]}  Rf8 {[%clk 0:00:04]} 46. Re2 {[%clk 0:01:42]}  d5 {[%clk 0:00:03]} 47. cxd5+ {[%clk 0:01:39]}  Kxd5 {[%clk 0:00:04]} 48. g6 {[%clk 0:01:40]}  Rf1 {[%clk 0:00:03]} 49. Kg5 {[%clk 0:01:40]}  Rb1 {[%clk 0:00:03]} 50. g7 {[%clk 0:01:41]}  Rb2 {[%clk 0:00:04]} 51. g8=Q+ {[%clk 0:01:41]}  Kd4 {[%clk 0:00:03]} 52. Qc4# {[%clk 0:01:42]} 1-0


[Site "https://www.chess.com"]

[Event "Titled Tuesday Blitz December 14 2021"]
[White "Shkapenko, Pavel"]
[Black "Keymer, Vincent"]
[WhiteFideId "4151933"]
[BlackFideId "12940690"]
[WhiteElo "2386"]
[BlackElo "2557"]
[Result "1-0"]
[Round "11"]
[TimeControl "180+1"]
[Date "2021.12.14"]
[WhiteClock "0:00:05"]
[BlackClock "0:00:17"]

1. e4 {[%clk 0:03:00]}  c6 {[%clk 0:02:58]} 2. d4 {[%clk 0:03:00]}  d5 {[%clk 0:02:58]} 3. e5 {[%clk 0:03:00]}  Bf5 {[%clk 0:02:58]} 4. h4 {[%clk 0:03:00]}  h6 {[%clk 0:02:58]} 5. g4 {[%clk 0:02:59]}  Be4 {[%clk 0:02:59]} 6. f3 {[%clk 0:02:59]}  Bh7 {[%clk 0:02:59]} 7. e6 {[%clk 0:02:58]}  Nf6 {[%clk 0:02:59]} 8. exf7+ {[%clk 0:02:53]}  Kxf7 {[%clk 0:03:00]} 9. Bd3 {[%clk 0:02:53]}  Qd6 {[%clk 0:02:49]} 10. Ne2 {[%clk 0:02:52]}  Nbd7 {[%clk 0:02:49]} 11. Bxh7 {[%clk 0:02:51]}  Rxh7 {[%clk 0:02:49]} 12. Bf4 {[%clk 0:02:31]}  e5 {[%clk 0:02:49]} 13. dxe5 {[%clk 0:02:31]}  Nxe5 {[%clk 0:02:49]} 14. O-O {[%clk 0:02:25]}  Re8 {[%clk 0:02:34]} 15. Nd2 {[%clk 0:02:09]}  g5 {[%clk 0:02:11]} 16. Bg3 {[%clk 0:02:03]}  gxh4 {[%clk 0:02:06]} 17. Bxh4 {[%clk 0:02:03]}  Ng6 {[%clk 0:01:46]} 18. Bg3 {[%clk 0:02:02]}  Qb4 {[%clk 0:01:41]} 19. c3 {[%clk 0:01:45]}  Qb6+ {[%clk 0:01:36]} 20. Bf2 {[%clk 0:01:33]}  Bc5 {[%clk 0:01:35]} 21. Nd4 {[%clk 0:01:33]}  Nf4 {[%clk 0:01:30]} 22. N2b3 {[%clk 0:01:14]}  Nh3+ {[%clk 0:01:27]} 23. Kg2 {[%clk 0:01:13]}  Nxf2 {[%clk 0:01:27]} 24. Rxf2 {[%clk 0:01:14]}  Bf8 {[%clk 0:01:13]} 25. Re2 {[%clk 0:01:05]}  Qc7 {[%clk 0:00:56]} 26. Rxe8 {[%clk 0:01:00]}  Kxe8 {[%clk 0:00:43]} 27. Qd3 {[%clk 0:01:01]}  Qf7 {[%clk 0:00:35]} 28. Qf5 {[%clk 0:00:55]}  Nd7 {[%clk 0:00:29]} 29. Re1+ {[%clk 0:00:53]}  Be7 {[%clk 0:00:29]} 30. Na5 {[%clk 0:00:46]}  Qxf5 {[%clk 0:00:19]} 31. Nxf5 {[%clk 0:00:46]}  Nc5 {[%clk 0:00:20]} 32. Re3 {[%clk 0:00:29]}  Kf8 {[%clk 0:00:16]} 33. b4 {[%clk 0:00:14]}  Na4 {[%clk 0:00:14]} 34. a3 {[%clk 0:00:11]}  Bd8 {[%clk 0:00:13]} 35. Nb3 {[%clk 0:00:10]}  Nb6 {[%clk 0:00:13]} 36. Nbd4 {[%clk 0:00:10]}  Nc4 {[%clk 0:00:12]} 37. Ne6+ {[%clk 0:00:09]}  Ke8 {[%clk 0:00:13]} 38. Re2 {[%clk 0:00:08]}  Be7 {[%clk 0:00:10]} 39. a4 {[%clk 0:00:07]}  Kd7 {[%clk 0:00:09]} 40. f4 {[%clk 0:00:07]}  Bd6 {[%clk 0:00:08]} 41. Kf3 {[%clk 0:00:07]}  Kc8 {[%clk 0:00:07]} 42. Ned4 {[%clk 0:00:07]}  Bf8 {[%clk 0:00:07]} 43. Re8+ {[%clk 0:00:06]}  Kd7 {[%clk 0:00:07]} 44. Rxf8 {[%clk 0:00:06]}  h5 {[%clk 0:00:08]} 45. g5 {[%clk 0:00:05]}  h4 {[%clk 0:00:08]} 46. g6 {[%clk 0:00:06]}  Rh8 {[%clk 0:00:08]} 47. Rxh8 {[%clk 0:00:05]}  Nd2+ {[%clk 0:00:09]} 48. Kg4 {[%clk 0:00:05]}  Ne4 {[%clk 0:00:09]} 49. g7 {[%clk 0:00:05]}  h3 {[%clk 0:00:10]} 50. Kxh3 {[%clk 0:00:05]}  Nf6 {[%clk 0:00:10]} 51. g8=Q {[%clk 0:00:05]}  Nxg8 {[%clk 0:00:11]} 52. Rxg8 {[%clk 0:00:06]}  c5 {[%clk 0:00:12]} 53. Rg7+ {[%clk 0:00:06]}  Ke8 {[%clk 0:00:12]} 54. bxc5 {[%clk 0:00:06]}  b6 {[%clk 0:00:11]} 55. cxb6 {[%clk 0:00:06]}  axb6 {[%clk 0:00:12]} 56. Re7+ {[%clk 0:00:06]}  Kf8 {[%clk 0:00:12]} 57. Ne6+ {[%clk 0:00:05]}  Kg8 {[%clk 0:00:13]} 58. Rg7+ {[%clk 0:00:03]}  Kh8 {[%clk 0:00:14]} 59. Rb7 {[%clk 0:00:03]}  d4 {[%clk 0:00:14]} 60. cxd4 {[%clk 0:00:03]}  b5 {[%clk 0:00:15]} 61. d5 {[%clk 0:00:04]}  bxa4 {[%clk 0:00:15]} 62. d6 {[%clk 0:00:04]}  a3 {[%clk 0:00:16]} 63. Re7 {[%clk 0:00:04]}  a2 {[%clk 0:00:17]} 64. d7 {[%clk 0:00:05]}  a1=Q {[%clk 0:00:17]} 65. d8=Q# {[%clk 0:00:05]} 1-0


[Site "https://www.chess.com"]

[Event "Titled Tuesday Blitz December 14 2021"]
[White "Urazayev, Arystanbek"]
[Black "Matinian, Nikita"]
[WhiteFideId "13709810"]
[BlackFideId "24129100"]
[WhiteElo "2321"]
[BlackElo "2422"]
[Result "1-0"]
[Round "11"]
[TimeControl "180+1"]
[Date "2021.12.14"]
[WhiteClock "0:01:27"]
[BlackClock "0:00:08"]

1. d4 {[%clk 0:03:00]}  Nf6 {[%clk 0:02:59]} 2. c4 {[%clk 0:03:00]}  g6 {[%clk 0:02:59]} 3. Nc3 {[%clk 0:03:01]}  Bg7 {[%clk 0:03:00]} 4. e4 {[%clk 0:03:01]}  O-O {[%clk 0:03:01]} 5. Be2 {[%clk 0:03:02]}  d6 {[%clk 0:03:01]} 6. h4 {[%clk 0:03:02]}  e5 {[%clk 0:02:59]} 7. d5 {[%clk 0:03:02]}  h5 {[%clk 0:02:54]} 8. Nf3 {[%clk 0:03:01]}  Na6 {[%clk 0:02:52]} 9. Ng5 {[%clk 0:03:01]}  Nc5 {[%clk 0:02:52]} 10. Be3 {[%clk 0:03:00]}  a5 {[%clk 0:02:51]} 11. f3 {[%clk 0:02:59]}  c6 {[%clk 0:02:51]} 12. Qd2 {[%clk 0:02:59]}  cxd5 {[%clk 0:02:50]} 13. Bxc5 {[%clk 0:02:58]}  dxc5 {[%clk 0:01:59]} 14. cxd5 {[%clk 0:02:58]}  a4 {[%clk 0:01:57]} 15. d6 {[%clk 0:02:49]}  a3 {[%clk 0:01:55]} 16. b3 {[%clk 0:02:49]}  Bd7 {[%clk 0:01:48]} 17. Bb5 {[%clk 0:02:41]}  Bxb5 {[%clk 0:01:19]} 18. Nxb5 {[%clk 0:02:40]}  Ra6 {[%clk 0:01:19]} 19. Rd1 {[%clk 0:02:39]}  Qd7 {[%clk 0:01:18]} 20. Qd3 {[%clk 0:02:28]}  Rd8 {[%clk 0:01:12]} 21. Ke2 {[%clk 0:02:06]}  Bf8 {[%clk 0:01:04]} 22. Qc4 {[%clk 0:02:05]}  Nh7 {[%clk 0:00:57]} 23. Nxh7 {[%clk 0:01:57]}  Kxh7 {[%clk 0:00:58]} 24. Rd5 {[%clk 0:01:50]}  Rb6 {[%clk 0:00:47]} 25. Rxc5 {[%clk 0:01:46]}  Bxd6 {[%clk 0:00:41]} 26. Rd1 {[%clk 0:01:43]}  Qe7 {[%clk 0:00:32]} 27. Rcd5 {[%clk 0:01:34]}  Bc7 {[%clk 0:00:08]} 28. Qxc7 {[%clk 0:01:27]} 1-0


[Site "https://www.chess.com"]

[Event "Titled Tuesday Blitz December 14 2021"]
[White "Weetik, Vjacheslav"]
[Black "Kamsky, Gata"]
[WhiteFideId "4153472"]
[BlackFideId "2000024"]
[WhiteElo "2469"]
[BlackElo "2645"]
[Result "1-0"]
[Round "11"]
[TimeControl "180+1"]
[Date "2021.12.14"]
[WhiteClock "0:00:07"]
[BlackClock "0:00:02"]

1. d4 {[%clk 0:02:55]}  f5 {[%clk 0:02:57]} 2. g3 {[%clk 0:02:55]}  Nf6 {[%clk 0:02:57]} 3. Bg2 {[%clk 0:02:55]}  g6 {[%clk 0:02:57]} 4. c3 {[%clk 0:02:56]}  Bg7 {[%clk 0:02:57]} 5. Qb3 {[%clk 0:02:56]}  Nc6 {[%clk 0:02:53]} 6. Nd2 {[%clk 0:02:55]}  d6 {[%clk 0:02:35]} 7. Ngf3 {[%clk 0:02:45]}  e5 {[%clk 0:02:31]} 8. dxe5 {[%clk 0:02:43]}  dxe5 {[%clk 0:02:29]} 9. Nc4 {[%clk 0:02:37]}  Qe7 {[%clk 0:02:23]} 10. O-O {[%clk 0:02:28]}  Rb8 {[%clk 0:02:11]} 11. Qc2 {[%clk 0:01:54]}  O-O {[%clk 0:02:05]} 12. a4 {[%clk 0:01:43]}  e4 {[%clk 0:02:03]} 13. Nd4 {[%clk 0:01:21]}  Nxd4 {[%clk 0:01:59]} 14. cxd4 {[%clk 0:01:22]}  Nd5 {[%clk 0:01:56]} 15. e3 {[%clk 0:01:08]}  Be6 {[%clk 0:01:53]} 16. b3 {[%clk 0:01:07]}  c5 {[%clk 0:01:49]} 17. Ba3 {[%clk 0:01:06]}  b6 {[%clk 0:01:47]} 18. Rad1 {[%clk 0:01:00]}  Rfd8 {[%clk 0:01:38]} 19. f3 {[%clk 0:00:57]}  exf3 {[%clk 0:01:35]} 20. Bxf3 {[%clk 0:00:58]}  Qg5 {[%clk 0:01:09]} 21. Qf2 {[%clk 0:00:41]}  f4 {[%clk 0:00:26]} 22. exf4 {[%clk 0:00:26]}  Nxf4 {[%clk 0:00:24]} 23. Kh1 {[%clk 0:00:26]}  Nh3 {[%clk 0:00:19]} 24. Qg2 {[%clk 0:00:19]}  cxd4 {[%clk 0:00:18]} 25. Rde1 {[%clk 0:00:16]}  Bg4 {[%clk 0:00:04]} 26. Be7 {[%clk 0:00:13]}  Qh5 {[%clk 0:00:04]} 27. Bxg4 {[%clk 0:00:11]}  Qxg4 {[%clk 0:00:03]} 28. Bxd8 {[%clk 0:00:11]}  Rxd8 {[%clk 0:00:03]} 29. Re4 {[%clk 0:00:12]}  Qd7 {[%clk 0:00:02]} 30. Rfe1 {[%clk 0:00:07]} 1-0


[Site "https://www.chess.com"]